[Event "Early-Titled-Tuesday-Blitz-January-16-2024"]
[Site "Chess.com"]
[Date "2024.01.16"]
[Round "1"]
[White "Witik"]
[Black "Cambek64"]
[Result "0-1"]
[WhiteElo "2775"]
[BlackElo "2443"]
[TimeControl "180+1"]
[EndTime "8:07:31 PST"]
[Termination "Cambek64 won by resignation"]

1. d4 {[%clk 0:02:59.7]} 1... c5 {[%clk 0:02:58.5]} 2. d5 {[%clk 0:02:59.9]}
2... e5 {[%clk 0:02:59]} 3. Nc3 {[%clk 0:03:00.1]} 3... d6 {[%clk 0:02:59.4]} 4.
e4 {[%clk 0:03:00.5]} 4... Nf6 {[%clk 0:02:59.9]} 5. Bb5+ {[%clk 0:03:01.1]}
5... Nbd7 {[%clk 0:02:58.8]} 6. a4 {[%clk 0:03:02]} 6... Be7 {[%clk 0:02:58]} 7.
Nf3 {[%clk 0:03:01.8]} 7... O-O {[%clk 0:02:58.3]} 8. O-O {[%clk 0:03:01.9]}
8... Ne8 {[%clk 0:02:58.6]} 9. Re1 {[%clk 0:03:01.5]} 9... g6 {[%clk 0:02:53.2]}
10. a5 {[%clk 0:02:54.9]} 10... a6 {[%clk 0:02:50.9]} 11. Bf1 {[%clk 0:02:54.5]}
11... Ng7 {[%clk 0:02:50.3]} 12. Nd2 {[%clk 0:02:54.1]} 12... f5 {[%clk
0:02:50.4]} 13. Nc4 {[%clk 0:02:52]} 13... f4 {[%clk 0:02:49.6]} 14. Na4 {[%clk
0:02:50.9]} 14... g5 {[%clk 0:02:38]} 15. Be2 {[%clk 0:02:33.3]} 15... Nf6
{[%clk 0:02:36]} 16. Nab6 {[%clk 0:02:33]} 16... Rb8 {[%clk 0:02:36.1]} 17. g4
{[%clk 0:02:05.8]} 17... Nxe4 {[%clk 0:02:16]} 18. Bf1 {[%clk 0:01:53.5]} 18...
Nf6 {[%clk 0:02:14.4]} 19. h3 {[%clk 0:01:46.8]} 19... Qe8 {[%clk 0:02:08]} 20.
b4 {[%clk 0:01:34.7]} 20... cxb4 {[%clk 0:02:05.3]} 21. Bb2 {[%clk 0:01:32.4]}
21... h5 {[%clk 0:01:57.8]} 22. f3 {[%clk 0:01:22.8]} 22... hxg4 {[%clk
0:01:55.2]} 23. hxg4 {[%clk 0:01:20.7]} 23... Qg6 {[%clk 0:01:47.4]} 24. Bd3
{[%clk 0:00:59.9]} 24... Qh6 {[%clk 0:01:47.4]} 25. Qe2 {[%clk 0:00:46.5]} 25...
Qh4 {[%clk 0:01:43.6]} 26. Qg2 {[%clk 0:00:43.4]} 26... Bd7 {[%clk 0:01:33.6]}
27. Nd2 {[%clk 0:00:13.5]} 27... Nge8 {[%clk 0:01:29]} 28. Ne4 {[%clk
0:00:11.8]} 28... Rd8 {[%clk 0:01:23.8]} 29. Kf1 {[%clk 0:00:08.5]} 29... Nxe4
{[%clk 0:01:23.2]} 30. Bxe4 {[%clk 0:00:08.7]} 30... Bb5+ {[%clk 0:01:21]} 31.
Bd3 {[%clk 0:00:06.9]} 31... Nf6 {[%clk 0:01:16.4]} 32. Ke2 {[%clk 0:00:07.1]}
32... e4 {[%clk 0:01:14.5]} 33. Bxb5 {[%clk 0:00:07.3]} 33... axb5 {[%clk
0:01:10.9]} 34. Bxf6 {[%clk 0:00:07.2]} 34... Bxf6 {[%clk 0:01:10]} 35. Rh1
{[%clk 0:00:07.4]} 35... exf3+ {[%clk 0:01:05.9]} 36. Kxf3 {[%clk 0:00:07.9]}
36... Qg3+ {[%clk 0:01:04.8]} 37. Qxg3 {[%clk 0:00:08]} 37... fxg3 {[%clk
0:01:04.5]} 38. Raf1 {[%clk 0:00:05.4]} 38... Be5+ {[%clk 0:01:02.9]} 39. Kg2
{[%clk 0:00:05.8]} 39... Rf4 {[%clk 0:01:00.3]} 40. Rh5 {[%clk 0:00:02.6]} 40...
Rxf1 {[%clk 0:00:57.8]} 41. Rxg5+ {[%clk 0:00:02.7]} 41... Kh7 {[%clk
0:00:55.3]} 42. Kxf1 {[%clk 0:00:03.6]} 42... Rf8+ {[%clk 0:00:55.3]} 43. Rf5
{[%clk 0:00:04.1]} 43... Rxf5+ {[%clk 0:00:55.3]} 44. gxf5 {[%clk 0:00:04.5]}
44... Kg7 {[%clk 0:00:54.5]} 45. Nc8 {[%clk 0:00:02.8]} 45... Kf6 {[%clk
0:00:54.5]} 46. Na7 {[%clk 0:00:03.3]} 46... Kxf5 {[%clk 0:00:53.9]} 47. Nxb5
{[%clk 0:00:03.9]} 47... Ke4 {[%clk 0:00:54.3]} 48. Nc7 {[%clk 0:00:01.9]} 48...
Kd4 {[%clk 0:00:52.1]} 49. Kg2 {[%clk 0:00:02.1]} 49... Kc3 {[%clk 0:00:51.2]}
50. Ne8 {[%clk 0:00:01]} 0-1

[Event "Early-Titled-Tuesday-Blitz-January-16-2024"]
[Site "Chess.com"]
[Date "2024.01.16"]
[Round "1"]
[White "Payyappat"]
[Black "Karacsonyi_Gellert"]
[Result "1-0"]
[WhiteElo "2442"]
[BlackElo "2774"]
[TimeControl "180+1"]
[EndTime "8:07:31 PST"]
[Termination "Payyappat won by checkmate"]

1. e4 {[%clk 0:03:00.9]} 1... c5 {[%clk 0:02:59.2]} 2. Nf3 {[%clk 0:03:00.5]}
2... Nc6 {[%clk 0:02:59.8]} 3. d4 {[%clk 0:03:00.8]} 3... cxd4 {[%clk
0:03:00.7]} 4. Nxd4 {[%clk 0:03:01.7]} 4... g6 {[%clk 0:03:01.4]} 5. Nc3 {[%clk
0:03:02.3]} 5... Bg7 {[%clk 0:03:01.7]} 6. Be3 {[%clk 0:03:02.9]} 6... Nf6
{[%clk 0:03:02.4]} 7. f4 {[%clk 0:03:02.9]} 7... d6 {[%clk 0:02:59.7]} 8. Be2
{[%clk 0:02:55.6]} 8... O-O {[%clk 0:02:59.4]} 9. O-O {[%clk 0:02:55.2]} 9...
Bd7 {[%clk 0:02:51.7]} 10. Bf3 {[%clk 0:02:53]} 10... Nxd4 {[%clk 0:02:49.4]}
11. Bxd4 {[%clk 0:02:52.9]} 11... Bc6 {[%clk 0:02:50.1]} 12. Kh1 {[%clk
0:02:51]} 12... a6 {[%clk 0:02:47.7]} 13. Qd2 {[%clk 0:02:50.2]} 13... Rc8
{[%clk 0:02:47.3]} 14. Rad1 {[%clk 0:02:49.3]} 14... b5 {[%clk 0:02:47.5]} 15.
a3 {[%clk 0:02:48.7]} 15... Nd7 {[%clk 0:02:40.8]} 16. Bxg7 {[%clk 0:02:43.8]}
16... Kxg7 {[%clk 0:02:41.7]} 17. Qd4+ {[%clk 0:02:44]} 17... Kg8 {[%clk
0:02:40.8]} 18. e5 {[%clk 0:02:42.1]} 18... Bxf3 {[%clk 0:01:57.4]} 19. Rxf3
{[%clk 0:02:39.4]} 19... Qb6 {[%clk 0:01:57.8]} 20. exd6 {[%clk 0:02:36.2]}
20... Qxd4 {[%clk 0:01:20.3]} 21. Rxd4 {[%clk 0:02:29.8]} 21... e6 {[%clk
0:01:20.4]} 22. h3 {[%clk 0:02:26.5]} 22... Rc6 {[%clk 0:01:19.5]} 23. Rf2
{[%clk 0:02:23.4]} 23... Rd8 {[%clk 0:01:18.2]} 24. Ne4 {[%clk 0:02:18.6]} 24...
Nb6 {[%clk 0:01:07.1]} 25. d7 {[%clk 0:01:53.6]} 25... Kg7 {[%clk 0:01:04.5]}
26. Rfd2 {[%clk 0:01:49.2]} 26... Nd5 {[%clk 0:01:01.1]} 27. b3 {[%clk
0:01:48.4]} 27... Nxf4 {[%clk 0:00:53.9]} 28. Nd6 {[%clk 0:01:28.7]} 28... e5
{[%clk 0:00:46.3]} 29. Re4 {[%clk 0:01:11.7]} 29... Rxd7 {[%clk 0:00:11.2]} 30.
Ne8+ {[%clk 0:01:07.3]} 30... Kf8 {[%clk 0:00:11.7]} 31. Rxd7 {[%clk 0:01:07]}
31... Kxe8 {[%clk 0:00:12.5]} 32. Ra7 {[%clk 0:01:04.2]} 32... f6 {[%clk
0:00:11.2]} 33. c4 {[%clk 0:00:58.3]} 33... h5 {[%clk 0:00:09.8]} 34. cxb5
{[%clk 0:00:54.9]} 34... axb5 {[%clk 0:00:10.7]} 35. Rb4 {[%clk 0:00:53.7]}
35... Rc1+ {[%clk 0:00:07.4]} 36. Kh2 {[%clk 0:00:53.6]} 36... Rc5 {[%clk
0:00:03.4]} 37. a4 {[%clk 0:00:53.4]} 37... h4 {[%clk 0:00:02.3]} 38. Rxb5
{[%clk 0:00:50.6]} 38... Rc8 {[%clk 0:00:02.6]} 39. Rbb7 {[%clk 0:00:46.3]}
39... Kf8 {[%clk 0:00:01.8]} 40. Rf7+ {[%clk 0:00:29.8]} 40... Kg8 {[%clk
0:00:02.2]} 41. Rxf6 {[%clk 0:00:30.7]} 41... Rc2 {[%clk 0:00:01.5]} 42. Rb6
{[%clk 0:00:28.6]} 42... Rxg2+ {[%clk 0:00:01.6]} 43. Kh1 {[%clk 0:00:28.5]}
43... Rf2 {[%clk 0:00:01.3]} 44. Rb8# {[%clk 0:00:28.1]} 1-0

[Event "Early-Titled-Tuesday-Blitz-January-16-2024"]
[Site "Chess.com"]
[Date "2024.01.16"]
[Round "1"]
[White "gabduschew"]
[Black "bubeliang"]
[Result "1-0"]
[WhiteElo "2442"]
[BlackElo "2774"]
[TimeControl "180+1"]
[EndTime "8:07:32 PST"]
[Termination "gabduschew won by resignation"]

1. b3 {[%clk 0:02:58.6]} 1... b6 {[%clk 0:02:59]} 2. Bb2 {[%clk 0:02:57.7]} 2...
Bb7 {[%clk 0:02:59.6]} 3. c4 {[%clk 0:02:56.5]} 3... e6 {[%clk 0:02:59.4]} 4. e3
{[%clk 0:02:54.9]} 4... f5 {[%clk 0:02:59.2]} 5. Nf3 {[%clk 0:02:52.9]} 5... Nf6
{[%clk 0:02:59.4]} 6. Be2 {[%clk 0:02:51.8]} 6... Be7 {[%clk 0:02:59.6]} 7. O-O
{[%clk 0:02:50]} 7... O-O {[%clk 0:02:59.9]} 8. d4 {[%clk 0:02:47.6]} 8... h6
{[%clk 0:02:59]} 9. Nc3 {[%clk 0:02:44.9]} 9... d6 {[%clk 0:02:56.7]} 10. Nd2
{[%clk 0:02:31.5]} 10... Nbd7 {[%clk 0:02:50.8]} 11. Bf3 {[%clk 0:02:29.9]}
11... Bxf3 {[%clk 0:02:48.4]} 12. Qxf3 {[%clk 0:02:29.2]} 12... Qe8 {[%clk
0:02:46.4]} 13. a4 {[%clk 0:02:23]} 13... c5 {[%clk 0:02:39.8]} 14. a5 {[%clk
0:02:17.5]} 14... e5 {[%clk 0:02:32.3]} 15. Qxf5 {[%clk 0:02:11.7]} 15... exd4
{[%clk 0:02:29.2]} 16. exd4 {[%clk 0:02:09.2]} 16... cxd4 {[%clk 0:02:30.1]} 17.
Qe6+ {[%clk 0:02:06.2]} 17... Kh8 {[%clk 0:02:30]} 18. Nb5 {[%clk 0:02:04.9]}
18... Nc5 {[%clk 0:02:29.5]} 19. Qh3 {[%clk 0:01:58.8]} 19... Qg6 {[%clk
0:02:17.6]} 20. Bxd4 {[%clk 0:01:51.7]} 20... Nce4 {[%clk 0:02:09.6]} 21. Nf3
{[%clk 0:01:45.5]} 21... Nh5 {[%clk 0:01:45.9]} 22. Be3 {[%clk 0:01:31.8]} 22...
Rf7 {[%clk 0:01:34.6]} 23. axb6 {[%clk 0:01:24.5]} 23... a6 {[%clk 0:01:34.3]}
24. b7 {[%clk 0:01:22.6]} 24... Rb8 {[%clk 0:01:26.5]} 25. Rxa6 {[%clk
0:01:15.7]} 25... Rxb7 {[%clk 0:01:26.5]} 26. Ne5 {[%clk 0:01:07.5]} 26... Qf5
{[%clk 0:01:16.4]} 27. Nxf7+ {[%clk 0:01:05.9]} 27... Qxf7 {[%clk 0:01:17.3]}
28. Qc8+ {[%clk 0:01:04.9]} 28... Bf8 {[%clk 0:01:13.4]} 29. Nxd6 {[%clk
0:00:42.7]} 29... Nxd6 {[%clk 0:01:09.6]} 30. Rxd6 {[%clk 0:00:42.2]} 30... Rxb3
{[%clk 0:01:05.6]} 31. Rd8 {[%clk 0:00:40.9]} 31... Kg8 {[%clk 0:00:47.7]} 32.
Bc5 {[%clk 0:00:40.2]} 32... Kh7 {[%clk 0:00:48.3]} 33. Rxf8 {[%clk 0:00:37.6]}
33... Qg6 {[%clk 0:00:44.1]} 34. Qf5 {[%clk 0:00:36.2]} 34... Qxf5 {[%clk
0:00:44.4]} 35. Rxf5 {[%clk 0:00:35.7]} 35... Nf6 {[%clk 0:00:45.3]} 36. Bd4
{[%clk 0:00:32.8]} 36... Ne8 {[%clk 0:00:44.7]} 37. c5 {[%clk 0:00:31.7]} 37...
Rb4 {[%clk 0:00:44.2]} 38. Rd1 {[%clk 0:00:29.9]} 38... Kg6 {[%clk 0:00:43.3]}
39. Re5 {[%clk 0:00:27.8]} 39... Nf6 {[%clk 0:00:38.6]} 40. Re6 {[%clk
0:00:26.7]} 40... Kf7 {[%clk 0:00:38.9]} 41. Rb6 {[%clk 0:00:19]} 41... Rc4
{[%clk 0:00:38.8]} 42. Bxf6 {[%clk 0:00:18.7]} 42... gxf6 {[%clk 0:00:37.7]} 43.
c6 {[%clk 0:00:18.6]} 43... Ke6 {[%clk 0:00:35.7]} 44. g3 {[%clk 0:00:18.8]}
44... Kf5 {[%clk 0:00:35.5]} 45. Rd2 {[%clk 0:00:17.4]} 45... Kg4 {[%clk
0:00:35.4]} 46. Kg2 {[%clk 0:00:17.6]} 46... h5 {[%clk 0:00:35.1]} 47. Rb5
{[%clk 0:00:17.4]} 47... f5 {[%clk 0:00:33.9]} 48. Rdd5 {[%clk 0:00:17.3]} 48...
h4 {[%clk 0:00:33]} 49. h3+ {[%clk 0:00:16.5]} 49... Kg5 {[%clk 0:00:33.1]} 50.
Rxf5+ {[%clk 0:00:16.7]} 50... Kg6 {[%clk 0:00:33.4]} 51. Rfc5 {[%clk
0:00:16.6]} 51... Kf6 {[%clk 0:00:34.3]} 52. Rxc4 {[%clk 0:00:16.4]} 1-0

[Event "Early-Titled-Tuesday-Blitz-January-16-2024"]
[Site "Chess.com"]
[Date "2024.01.16"]
[Round "1"]
[White "wild3000"]
[Black "Nikolakis2014"]
[Result "0-1"]
[WhiteElo "2403"]
[BlackElo "2742"]
[TimeControl "180+1"]
[EndTime "8:07:34 PST"]
[Termination "Nikolakis2014 won by checkmate"]

1. e4 {[%clk 0:02:51.7]} 1... c5 {[%clk 0:02:59.5]} 2. Nf3 {[%clk 0:02:51.4]}
2... Nc6 {[%clk 0:02:59.7]} 3. Bb5 {[%clk 0:02:50.9]} 3... g6 {[%clk 0:02:59.7]}
4. O-O {[%clk 0:02:50]} 4... Bg7 {[%clk 0:02:59.8]} 5. c3 {[%clk 0:02:49.9]}
5... Nf6 {[%clk 0:02:59.7]} 6. Re1 {[%clk 0:02:49.4]} 6... O-O {[%clk
0:02:59.5]} 7. d4 {[%clk 0:02:39.9]} 7... d5 {[%clk 0:02:59.6]} 8. exd5 {[%clk
0:02:34.8]} 8... Qxd5 {[%clk 0:02:51.2]} 9. c4 {[%clk 0:02:27.9]} 9... Qd6
{[%clk 0:02:38.3]} 10. dxc5 {[%clk 0:02:23.1]} 10... Qxd1 {[%clk 0:02:34.4]} 11.
Rxd1 {[%clk 0:02:22.8]} 11... Ne4 {[%clk 0:02:35.1]} 12. Nc3 {[%clk 0:02:09.2]}
12... Nxc5 {[%clk 0:02:24]} 13. Be3 {[%clk 0:02:01.9]} 13... Bxc3 {[%clk
0:02:14.7]} 14. Bxc5 {[%clk 0:01:55]} 14... Bxb2 {[%clk 0:02:14.4]} 15. Rab1
{[%clk 0:01:54.6]} 15... Bf6 {[%clk 0:02:13.8]} 16. Bxc6 {[%clk 0:01:46]} 16...
bxc6 {[%clk 0:02:12.3]} 17. Re1 {[%clk 0:01:41.4]} 17... Be6 {[%clk 0:02:06.9]}
18. Rb7 {[%clk 0:01:28.5]} 18... Rfb8 {[%clk 0:01:57.6]} 19. Rxb8+ {[%clk
0:01:26.1]} 19... Rxb8 {[%clk 0:01:57.4]} 20. Bxa7 {[%clk 0:01:25.4]} 20... Ra8
{[%clk 0:01:57.5]} 21. Bd4 {[%clk 0:01:24.1]} 21... Rxa2 {[%clk 0:01:57]} 22.
Bxf6 {[%clk 0:01:23.3]} 22... exf6 {[%clk 0:01:57.2]} 23. Nd4 {[%clk 0:01:12.7]}
23... Ra6 {[%clk 0:01:31.6]} 24. h3 {[%clk 0:01:07.5]} 24... Bxc4 {[%clk
0:01:28.9]} 25. Re8+ {[%clk 0:01:05.1]} 25... Kg7 {[%clk 0:01:28.4]} 26. Rc8
{[%clk 0:01:05]} 26... Bd5 {[%clk 0:01:28.6]} 27. f3 {[%clk 0:00:54.5]} 27... f5
{[%clk 0:01:28.2]} 28. h4 {[%clk 0:00:51.3]} 28... h5 {[%clk 0:01:28]} 29. Kf2
{[%clk 0:00:50.5]} 29... Ra4 {[%clk 0:01:25.9]} 30. Ke3 {[%clk 0:00:45.7]} 30...
f4+ {[%clk 0:01:25.6]} 31. Kd3 {[%clk 0:00:45.8]} 31... Ra2 {[%clk 0:01:17.6]}
32. Nxc6 {[%clk 0:00:43.5]} 32... Rxg2 {[%clk 0:01:15.4]} 33. Ne5 {[%clk
0:00:38.1]} 33... Rh2 {[%clk 0:01:10.8]} 34. Kd4 {[%clk 0:00:35.3]} 34... Be6
{[%clk 0:01:10.9]} 35. Rc7 {[%clk 0:00:28.9]} 35... Rxh4 {[%clk 0:01:09.8]} 36.
Nc6 {[%clk 0:00:29.2]} 36... Rh1 {[%clk 0:01:07.5]} 37. Ke5 {[%clk 0:00:27.4]}
37... Rc1 {[%clk 0:00:48.8]} 38. Kd6 {[%clk 0:00:17.7]} 38... h4 {[%clk
0:00:48.2]} 39. Re7 {[%clk 0:00:17]} 39... h3 {[%clk 0:00:40.2]} 40. Nd8 {[%clk
0:00:17]} 40... Rd1+ {[%clk 0:00:39.7]} 41. Kc7 {[%clk 0:00:16.4]} 41... Rxd8
{[%clk 0:00:37.7]} 42. Kxd8 {[%clk 0:00:16.6]} 42... h2 {[%clk 0:00:38]} 43. Rc7
{[%clk 0:00:13.3]} 43... h1=Q {[%clk 0:00:37.6]} 44. Ke7 {[%clk 0:00:13.9]}
44... Qxf3 {[%clk 0:00:37.6]} 45. Ke8 {[%clk 0:00:14.1]} 45... Qe4 {[%clk
0:00:37.5]} 46. Re7 {[%clk 0:00:12.4]} 46... f3 {[%clk 0:00:37.2]} 47. Rc7
{[%clk 0:00:10.2]} 47... f2 {[%clk 0:00:36.1]} 48. Kd8 {[%clk 0:00:10.5]} 48...
Qd5+ {[%clk 0:00:35.5]} 49. Ke8 {[%clk 0:00:09.2]} 49... Kf6 {[%clk 0:00:34.8]}
50. Kf8 {[%clk 0:00:05.5]} 50... Qd8# {[%clk 0:00:33.8]} 0-1

[Event "Early-Titled-Tuesday-Blitz-January-16-2024"]
[Site "Chess.com"]
[Date "2024.01.16"]
[Round "1"]
[White "abelmat"]
[Black "NMJeevanK"]
[Result "0-1"]
[WhiteElo "2077"]
[BlackElo "2564"]
[TimeControl "180+1"]
[EndTime "8:07:35 PST"]
[Termination "NMJeevanK won on time"]

1. d4 {[%clk 0:02:58.8]} 1... Nf6 {[%clk 0:02:57.4]} 2. c4 {[%clk 0:02:58.3]}
2... e6 {[%clk 0:02:56.7]} 3. Nf3 {[%clk 0:02:58.3]} 3... d5 {[%clk 0:02:57.4]}
4. Nc3 {[%clk 0:02:57.6]} 4... Be7 {[%clk 0:02:56.5]} 5. Bf4 {[%clk 0:02:56.8]}
5... O-O {[%clk 0:02:54.8]} 6. e3 {[%clk 0:02:56.5]} 6... c5 {[%clk 0:02:47.9]}
7. dxc5 {[%clk 0:02:54.6]} 7... Bxc5 {[%clk 0:02:48.4]} 8. a3 {[%clk 0:02:49.9]}
8... a5 {[%clk 0:02:45.8]} 9. Bd3 {[%clk 0:02:46.2]} 9... Nc6 {[%clk 0:02:41.5]}
10. O-O {[%clk 0:02:43.3]} 10... h6 {[%clk 0:02:34.2]} 11. h3 {[%clk 0:02:42.4]}
11... Re8 {[%clk 0:02:33.7]} 12. cxd5 {[%clk 0:02:34.9]} 12... exd5 {[%clk
0:02:33.2]} 13. Nb5 {[%clk 0:02:32.8]} 13... Bb6 {[%clk 0:02:28.5]} 14. Rc1
{[%clk 0:02:30.4]} 14... Ne4 {[%clk 0:02:21.7]} 15. Qc2 {[%clk 0:02:14.1]} 15...
Qf6 {[%clk 0:02:14.9]} 16. Bc7 {[%clk 0:02:05.2]} 16... Ba7 {[%clk 0:02:00.5]}
17. Bf4 {[%clk 0:01:53.4]} 17... g5 {[%clk 0:01:55.3]} 18. Nc7 {[%clk
0:01:37.3]} 18... gxf4 {[%clk 0:01:37.8]} 19. Nxa8 {[%clk 0:01:19.2]} 19... fxe3
{[%clk 0:01:37.9]} 20. Nc7 {[%clk 0:01:11.6]} 20... exf2+ {[%clk 0:01:37.1]} 21.
Kh1 {[%clk 0:01:04.8]} 21... Ng3+ {[%clk 0:01:26.2]} 22. Kh2 {[%clk 0:01:01.1]}
22... Qf4 {[%clk 0:00:56]} 23. Bh7+ {[%clk 0:00:38.1]} 23... Kh8 {[%clk
0:00:45.3]} 24. Rxf2 {[%clk 0:00:18.9]} 24... Qxc7 {[%clk 0:00:33.8]} 25. Kg1
{[%clk 0:00:15.9]} 25... Bxf2+ {[%clk 0:00:26.1]} 26. Qxf2 {[%clk 0:00:13]}
26... Kxh7 {[%clk 0:00:24.3]} 27. Nh4 {[%clk 0:00:12.5]} 27... Ne4 {[%clk
0:00:19.4]} 28. Qe3 {[%clk 0:00:09.5]} 28... Qg3 {[%clk 0:00:14.4]} 29. Nf3
{[%clk 0:00:08.5]} 29... Bxh3 {[%clk 0:00:13.5]} 30. Rc2 {[%clk 0:00:07.2]}
30... Bg4 {[%clk 0:00:10.5]} 31. Re2 {[%clk 0:00:04.4]} 31... Bxf3 {[%clk
0:00:10.7]} 32. Qxf3 {[%clk 0:00:04.8]} 32... Qxf3 {[%clk 0:00:11.1]} 33. gxf3
{[%clk 0:00:04.8]} 33... Rg8+ {[%clk 0:00:11.8]} 34. Kf1 {[%clk 0:00:03.7]}
34... Ng3+ {[%clk 0:00:11.8]} 35. Kf2 {[%clk 0:00:04.4]} 35... Nxe2 {[%clk
0:00:12.7]} 36. Kxe2 {[%clk 0:00:04.3]} 36... Rg2+ {[%clk 0:00:13.4]} 0-1

[Event "Early-Titled-Tuesday-Blitz-January-16-2024"]
[Site "Chess.com"]
[Date "2024.01.16"]
[Round "1"]
[White "Vazabanga"]
[Black "semchik73"]
[Result "0-1"]
[WhiteElo "2686"]
[BlackElo "2394"]
[TimeControl "180+1"]
[EndTime "8:07:36 PST"]
[Termination "semchik73 won by resignation"]

1. d4 {[%clk 0:02:06.1]} 1... d5 {[%clk 0:02:59.8]} 2. c4 {[%clk 0:02:02.3]}
2... c6 {[%clk 0:03:00.2]} 3. Nf3 {[%clk 0:02:02.6]} 3... Nf6 {[%clk 0:03:00.6]}
4. Qb3 {[%clk 0:02:03.2]} 4... dxc4 {[%clk 0:02:57]} 5. Qxc4 {[%clk 0:02:04.1]}
5... e6 {[%clk 0:02:56.4]} 6. g3 {[%clk 0:02:04.5]} 6... Be7 {[%clk 0:02:52.9]}
7. Bg2 {[%clk 0:02:05.1]} 7... O-O {[%clk 0:02:53.1]} 8. O-O {[%clk 0:02:05.8]}
8... Nbd7 {[%clk 0:02:53.3]} 9. Nc3 {[%clk 0:02:06.4]} 9... Nb6 {[%clk
0:02:53.4]} 10. Qb3 {[%clk 0:02:05.1]} 10... Nbd5 {[%clk 0:02:49.7]} 11. h3
{[%clk 0:02:03]} 11... a5 {[%clk 0:02:47.1]} 12. Re1 {[%clk 0:02:02.7]} 12...
Nxc3 {[%clk 0:02:45.5]} 13. bxc3 {[%clk 0:02:02.3]} 13... a4 {[%clk 0:02:38.1]}
14. Qc2 {[%clk 0:02:01.1]} 14... Qa5 {[%clk 0:02:23]} 15. e4 {[%clk 0:02:00.4]}
15... b5 {[%clk 0:02:19.5]} 16. Be3 {[%clk 0:01:59]} 16... Bb7 {[%clk
0:02:16.9]} 17. Ne5 {[%clk 0:01:56.4]} 17... Rac8 {[%clk 0:02:14.5]} 18. Nd3
{[%clk 0:01:56.1]} 18... c5 {[%clk 0:02:04.8]} 19. dxc5 {[%clk 0:01:28.2]} 19...
Bxe4 {[%clk 0:02:02.5]} 20. c4 {[%clk 0:01:13.3]} 20... Bxg2 {[%clk 0:01:57.7]}
21. Kxg2 {[%clk 0:01:14.2]} 21... bxc4 {[%clk 0:01:49.5]} 22. Qxc4 {[%clk
0:01:14.2]} 22... Nd5 {[%clk 0:01:47.8]} 23. Bd4 {[%clk 0:01:14.4]} 23... Rfd8
{[%clk 0:01:44.9]} 24. Red1 {[%clk 0:00:41.4]} 24... Nb6 {[%clk 0:01:43.9]} 25.
Qc3 {[%clk 0:00:24.4]} 25... Qa8+ {[%clk 0:01:43.9]} 26. Kg1 {[%clk 0:00:20.2]}
26... Nd5 {[%clk 0:01:44.2]} 27. Qd2 {[%clk 0:00:19.6]} 27... Nf6 {[%clk
0:01:41.1]} 28. Qe3 {[%clk 0:00:13.8]} 28... Qd5 {[%clk 0:01:38.2]} 29. Nf4
{[%clk 0:00:13.1]} 29... Qe4 {[%clk 0:01:27.3]} 30. Rac1 {[%clk 0:00:12.9]}
30... Qxe3 {[%clk 0:01:20.3]} 31. Bxe3 {[%clk 0:00:13.8]} 31... Rxd1+ {[%clk
0:01:20]} 32. Rxd1 {[%clk 0:00:14.6]} 32... Ne4 {[%clk 0:01:19.4]} 33. Nd3
{[%clk 0:00:10.1]} 33... Nc3 {[%clk 0:01:17.7]} 34. Rd2 {[%clk 0:00:10.5]} 34...
Rd8 {[%clk 0:01:14.6]} 35. a3 {[%clk 0:00:06.5]} 35... Ne4 {[%clk 0:01:12.8]}
36. Rd1 {[%clk 0:00:06.3]} 36... Nxc5 {[%clk 0:01:12.7]} 37. Bxc5 {[%clk
0:00:06.3]} 37... Bxc5 {[%clk 0:01:12.6]} 38. Kf1 {[%clk 0:00:07.2]} 38... Bxa3
{[%clk 0:01:12.2]} 39. Ke2 {[%clk 0:00:07.9]} 39... Bd6 {[%clk 0:01:08.5]} 40.
Ne5 {[%clk 0:00:06.4]} 40... Bc7 {[%clk 0:01:03.1]} 41. Rxd8+ {[%clk 0:00:05.3]}
41... Bxd8 {[%clk 0:01:03.3]} 42. Kd3 {[%clk 0:00:05.8]} 42... Bb6 {[%clk
0:01:02.8]} 43. f3 {[%clk 0:00:05.7]} 43... Bc7 {[%clk 0:01:02.8]} 44. Nc6
{[%clk 0:00:05.6]} 44... Bxg3 {[%clk 0:01:02.5]} 45. Kc4 {[%clk 0:00:06.3]}
45... Bd6 {[%clk 0:01:01.9]} 46. Nd4 {[%clk 0:00:06]} 46... a3 {[%clk
0:01:02.2]} 47. Kb3 {[%clk 0:00:05.8]} 47... h5 {[%clk 0:00:57]} 48. Nb5 {[%clk
0:00:06.1]} 48... Bc5 {[%clk 0:00:56.2]} 49. Nc3 {[%clk 0:00:06.1]} 49... g5
{[%clk 0:00:55]} 50. Ne4 {[%clk 0:00:06.5]} 50... Be7 {[%clk 0:00:55.1]} 51. Ng3
{[%clk 0:00:06.8]} 51... h4 {[%clk 0:00:53.3]} 52. Ne4 {[%clk 0:00:07.4]} 52...
f5 {[%clk 0:00:53]} 53. Nf2 {[%clk 0:00:07.7]} 53... Kf7 {[%clk 0:00:52.3]} 54.
Nd3 {[%clk 0:00:08.3]} 54... Kf6 {[%clk 0:00:52.3]} 55. Kc2 {[%clk 0:00:08.1]}
55... g4 {[%clk 0:00:50.3]} 56. fxg4 {[%clk 0:00:08.4]} 56... fxg4 {[%clk
0:00:50.8]} 57. hxg4 {[%clk 0:00:09.3]} 57... Kg5 {[%clk 0:00:50.5]} 58. Ne5
{[%clk 0:00:09.6]} 58... Bf6 {[%clk 0:00:47.5]} 59. Nf3+ {[%clk 0:00:08.7]}
59... Kxg4 {[%clk 0:00:47.9]} 0-1